bitfinex/quotes_BTCUSD_20220304
["timestamp","ask_amount","ask_price","bid_price","bid_amount"]
[1646406111526,1.50849968,41071.0,41043.0,0.001]
[1646406111726,0.40426668,41071.0,41043.0,0.001]
[1646406111928,0.40426668,41071.0,41058.0,0.26642529]
[1646406111929,0.25193421,41068.0,41058.0,0.26642529]
[1646406112128,0.01330069,41080.0,41068.0,0.46093895]
[1646406112329,0.32498015,41070.0,41068.0,0.46093895]
[1646406112529,0.53581798,41069.0,41068.0,0.45593895]
[1646406112729,0.80792891,41069.0,41068.0,0.45593895]
[1646406112935,0.87950763,41069.0,41068.0,0.45573895]
[1646406113528,0.92950763,41069.0,41068.0,0.45573895]
[1646406113729,0.92950763,41069.0,41051.0,0.1001]
[1646406113730,0.05,41055.0,41051.0,0.0001]
[1646406114130,0.06092918,41066.0,41051.0,0.0001]
[1646406114330,0.060919,41068.0,41052.0,0.020147]
[1646406114529,0.05,41069.0,41068.0,0.121838]
[1646406114751,0.05,41069.0,41068.0,3.8e-05]
[1646406115557,0.42177612,41069.0,41068.0,3.8e-05]
[1646406115855,0.465633,41069.0,41068.0,3.8e-05]
[1646406116052,0.1,41069.0,41068.0,3.8e-05]
[1646406116253,0.05,41069.0,41068.0,3.8e-05]
[1646406116857,0.41540458,41069.0,41068.0,3.8e-05]
[1646406117055,0.1,41073.0,41068.0,0.02016]
[1646406117056,0.05,41073.0,41068.0,0.02016]
[1646406117258,0.0002,41082.0,41068.0,0.02016]
[1646406117853,0.0002,41082.0,41068.0,3.8e-05]
[1646406118253,0.365633,41081.0,41068.0,3.8e-05]
[1646406118501,0.43262599,41082.0,41068.0,3.8e-05]
[1646406118702,0.01116574,41081.0,41068.0,3.8e-05]
[1646406119004,0.0002,41082.0,41077.0,0.32052077]
[1646406119402,0.0002,41082.0,41068.0,3.8e-05]
[1646406119703,0.0002,41082.0,41069.0,0.020106]
[1646406119903,0.0002,41082.0,41068.0,3.8e-05]
[1646406120108,0.01341289,41082.0,41069.0,0.020111]
[1646406120307,0.01485536,41081.0,41076.0,0.27453545]
[1646406120508,0.05,41089.0,41077.0,0.37789136]
[1646406120714,0.01365454,41087.0,41078.0,0.141]
[1646406120906,0.01434104,41086.0,41079.0,0.37788336]
[1646406121105,0.0104355,41085.0,41080.0,0.041]
[1646406121304,0.01520882,41092.0,41084.0,0.13009409]
[1646406121507,0.01520882,41092.0,41075.0,0.28040784]
[1646406121508,0.01345784,41085.0,41075.0,0.28040784]
[1646406121710,0.360633,41084.0,41069.0,0.4704]
[1646406121908,0.365634,41083.0,41069.0,0.4704]
[1646406122106,0.01345784,41085.0,41068.0,3.8e-05]
[1646406122107,0.365634,41082.0,41068.0,3.8e-05]
[1646406122365,0.465634,41082.0,41068.0,3.8e-05]
[1646406122567,0.060918,41079.0,41068.0,3.8e-05]
[1646406122769,0.72342336,41078.0,41068.0,3.8e-05]
[1646406123273,0.365634,41076.0,41068.0,3.8e-05]
[1646406123466,0.01245359,41075.0,41068.0,3.8e-05]
[1646406123668,0.365634,41074.0,41068.0,3.8e-05]
[1646406124067,0.365634,41072.0,41068.0,3.8e-05]
[1646406124267,0.365634,41070.0,41068.0,3.8e-05]
[1646406124669,0.82342336,41069.0,41068.0,3.8e-05]
[1646406124870,1.07342336,41069.0,41068.0,3.8e-05]
[1646406125071,1.07342336,41069.0,41051.0,0.0001]
[1646406125072,0.365634,41067.0,41051.0,0.0001]
[1646406125270,0.060954,41056.0,41051.0,0.0001]
[1646406125469,0.515647,41052.0,41051.0,0.0001]
[1646406125668,0.121914,41055.0,41051.0,0.0001]
[1646406125873,0.121914,41055.0,41052.0,0.79746936]
[1646406126126,0.18287,41063.0,41052.0,0.79746936]
[1646406126127,0.26009917,41057.0,41052.0,0.79746936]
[1646406126318,0.365647,41056.0,41052.0,0.79746936]
[1646406126717,0.365647,41056.0,41052.0,0.78006936]
[1646406126918,0.365647,41056.0,41051.0,0.0001]
[1646406126919,0.25370267,41055.0,41051.0,0.0001]
[1646406127119,0.365647,41054.0,41051.0,0.0001]
[1646406127318,0.26584055,41053.0,41051.0,0.0001]
[1646406127519,0.365647,41052.0,41030.0,0.013148]
[1646406127719,0.50778936,41051.0,41030.0,0.013148]
[1646406128018,0.28440246,41036.0,41030.0,0.013148]
[1646406128220,0.415647,41042.0,41037.0,0.63600815]
[1646406128621,0.05,41039.0,41037.0,0.63600815]
[1646406128820,0.05,41042.0,41037.0,0.63600815]
[1646406129020,0.05,41046.0,41037.0,0.63600815]
[1646406129229,0.05,41046.0,41026.0,0.170624]
[1646406129230,1.4,41044.0,41026.0,0.170624]
[1646406129524,0.15562975,41027.0,41026.0,0.170624]
[1646406129763,0.57127675,41027.0,41021.0,0.01]
[1646406129959,0.57127675,41027.0,41008.0,0.0011]
[1646406129960,0.20677884,41012.0,41008.0,0.0011]
[1646406130159,0.29412634,41025.0,41012.0,0.01501505]
[1646406130360,1.4,41023.0,41008.0,0.0011]
[1646406130560,0.05688324,41012.0,41008.0,0.0011]
[1646406130761,0.05688324,41012.0,40999.0,0.19696725]
[1646406130762,0.365647,41011.0,40999.0,0.19696725]
[1646406130963,0.365647,41009.0,40999.0,0.19696725]
[1646406131161,0.075,41023.0,40995.0,0.29545088]
[1646406131162,0.05,41023.0,41005.0,0.13009409]
[1646406131362,0.7182386,41022.0,40999.0,0.29545088]
[1646406131564,0.05,41023.0,41003.0,0.365647]
[1646406131763,0.05,41023.0,41009.0,0.06700515]
[1646406131959,0.05,41023.0,41005.0,0.025704]
[1646406131960,0.05,41023.0,41010.0,0.7181736]
[1646406132161,0.08022,41025.0,41016.0,0.025692]
[1646406132361,0.08022,41025.0,41002.0,0.01553115]
[1646406132562,0.08022,41025.0,40998.0,0.27196]
[1646406132563,0.1628332,41011.0,40999.0,0.41741888]
[1646406132864,0.1628332,41011.0,40995.0,0.15]
[1646406132865,0.05855717,41006.0,40995.0,0.365647]
[1646406133064,0.05,41020.0,40997.0,0.02448]
[1646406133065,0.061012,41009.0,40997.0,0.02448]
[1646406133263,0.3525916,41019.0,40999.0,0.02448]
[1646406133513,0.23304,41020.0,41010.0,0.00205088]
[1646406133713,0.05,41020.0,41010.0,0.00205088]
[1646406133909,0.4525916,41022.0,41010.0,0.00205088]
[1646406134213,0.25134258,41010.0,40998.0,0.365647]
[1646406134510,0.111,41018.0,41007.0,0.32312237]
[1646406134709,0.061,41018.0,40994.0,0.29545088]
[1646406134910,0.08022,41025.0,40998.0,0.45]
[1646406135111,0.05,41022.0,41008.0,0.361294]
[1646406135311,0.05,41022.0,41012.0,0.361255]
[1646406135514,0.27191179,41016.0,41005.0,0.3525916]
[1646406135712,0.365751,41014.0,41001.0,0.2499]
[1646406135913,0.37674957,41014.0,40993.0,0.3525916]
[1646406136216,0.12203,41012.0,40991.0,0.01]
[1646406136410,0.365751,41011.0,40991.0,0.01]
[1646406136609,0.01498464,41007.0,40991.0,0.01]
[1646406136812,0.365751,41006.0,40991.0,0.01]
[1646406137012,0.29581653,41005.0,40991.0,0.01]
[1646406137254,0.487806,41004.0,40991.0,0.01]
[1646406137459,0.365751,41004.0,40991.0,0.01]
[1646406138055,0.365769,41000.0,40991.0,0.01]
[1646406138258,0.365769,40999.0,40991.0,0.01]
[1646406138456,0.23823351,41000.0,40991.0,0.01]
[1646406138658,0.01198796,41000.0,40991.0,0.01]
[1646406138965,0.0105046,41004.0,40991.0,0.01]
[1646406139158,0.365769,41003.0,40991.0,0.01]
[1646406139355,0.365769,41003.0,40992.0,0.23183167]
[1646406139356,0.360769,41003.0,40992.0,0.23183167]
[1646406139555,0.25892169,40995.0,40991.0,0.01]
[1646406139759,0.36577,41001.0,40996.0,0.32651668]
[1646406139956,0.36577,40999.0,40996.0,0.32651668]
[1646406140160,0.36577,40999.0,40984.0,0.00124625]
[1646406140161,1.4,40998.0,40984.0,0.00124625]
[1646406140360,0.36577,40997.0,40984.0,0.00124625]
[1646406140556,0.36577,40997.0,40984.0,0.28731146]
[1646406140757,0.3785233,40995.0,40984.0,0.00124625]
[1646406141508,0.1,40998.0,40984.0,0.00124625]
[1646406141509,0.36577,40989.0,40984.0,0.00124625]
[1646406141702,0.36577,40985.0,40984.0,0.00124625]
[1646406141902,0.21904994,40989.0,40984.0,0.00124625]
[1646406142103,0.36577,40988.0,40984.0,0.00124625]
[1646406143002,0.36577,40986.0,40984.0,0.00124625]
[1646406143203,0.36077,40986.0,40984.0,0.00124625]
[1646406143403,0.36077,40986.0,40968.0,0.35052812]
[1646406143404,0.3473475,40986.0,40968.0,0.35052812]
[1646406143604,0.26449237,40987.0,40968.0,0.42318688]
[1646406143803,0.26449237,40987.0,40968.0,0.07265876]
[1646406143804,0.22447541,40981.0,40968.0,0.07265876]
[1646406144008,0.35124114,40986.0,40968.0,0.13369576]
[1646406144206,0.5620804,40998.0,40974.0,0.02448]
[1646406144207,0.401029,40998.0,40974.0,0.02448]
[1646406144407,0.401029,40998.0,40980.0,0.02448]
[1646406144408,0.21371147,40998.0,40980.0,0.02448]
[1646406144605,0.9738,41008.0,40992.0,0.15]
[1646406144864,0.4826,41016.0,40997.0,0.1]
[1646406145063,0.16521304,41012.0,41006.0,0.24524834]
[1646406145363,0.365817,41011.0,41010.0,0.13009409]
[1646406145762,0.19405393,41028.0,40998.0,0.40124114]
[1646406145962,0.2431294,41015.0,41006.0,0.2663376]
[1646406146160,0.0011,41031.0,41007.0,0.37572114]
[1646406146360,0.0011,41031.0,41003.0,0.35124114]
[1646406146563,0.35124114,41021.0,41004.0,0.36574]
[1646406146760,0.35124114,41026.0,41013.0,0.32521897]
[1646406146962,0.35124114,41026.0,41002.0,0.36574]
[1646406146963,0.08124,41014.0,41002.0,0.36574]
[1646406147161,0.060983,41027.0,41015.0,0.19967574]
[1646406147361,0.36574,41026.0,41016.0,0.35124114]
[1646406147560,0.36574,41026.0,41015.0,0.19967574]
[1646406147762,0.20960972,41021.0,41015.0,0.19967574]
[1646406148161,0.060983,41027.0,41019.0,0.13009409]
[1646406148362,0.36574,41026.0,41016.0,0.34962546]
[1646406148607,0.36574,41022.0,41015.0,0.19967574]
[1646406149005,0.17524867,41018.0,41015.0,0.19967574]
[1646406149210,0.0011,41028.0,41017.0,0.13009409]
[1646406149405,0.0011,41028.0,41018.0,0.36574]
[1646406149804,0.0011,41028.0,41023.0,0.36574]
[1646406150006,0.0011,41028.0,41018.0,0.041]
[1646406150204,0.36574,41030.0,41022.0,0.25134204]
[1646406150404,0.0011,41031.0,41015.0,0.19967574]
[1646406150704,0.0011,41031.0,41016.0,0.34962546]
[1646406150705,0.05,41030.0,41016.0,0.34962546]
[1646406150905,0.22283248,41028.0,41020.0,0.13009409]
[1646406151106,0.0011,41031.0,41023.0,0.16533836]
[1646406151308,0.0011,41031.0,41024.0,1.47844546]
[1646406151508,0.0011,41031.0,41027.0,0.76308]
[1646406151710,0.0011,41031.0,41030.0,1.12882]
[1646406151908,0.0011,41031.0,41030.0,0.56131409]
[1646406152109,0.0011,41042.0,41041.0,0.06777579]
[1646406152368,0.0011,41055.0,41041.0,0.91093955]
[1646406152562,0.0011,41055.0,41047.0,0.03868767]
[1646406152764,0.0011,41055.0,41051.0,0.02448]
[1646406152963,0.0011,41055.0,41054.0,0.52031409]
[1646406153163,0.0011,41055.0,41054.0,0.86993955]
[1646406153363,0.0011,41055.0,41054.0,0.96993955]
[1646406153564,0.0011,41055.0,41054.0,0.13009409]
[1646406153766,0.36684,41055.0,41054.0,0.17109409]
[1646406154163,0.0011,41055.0,41054.0,0.17109409]
[1646406155365,0.0011,41055.0,41054.0,0.88645955]
[1646406155565,0.0011,41055.0,41054.0,0.56131409]
[1646406155766,0.0011,41055.0,41054.0,0.14033049]
[1646406156216,0.0011,41055.0,41054.0,0.14032928]
[1646406156818,0.36684,41055.0,41054.0,0.14032928]
[1646406157020,0.58925837,41055.0,41054.0,0.14032928]
[1646406157218,0.0011,41055.0,41054.0,0.14032928]
[1646406158021,0.36684,41055.0,41054.0,0.09932928]
[1646406158222,0.36684,41055.0,41042.0,0.34869308]
[1646406158223,0.37688751,41055.0,41042.0,0.34869308]
[1646406158419,0.01097545,41047.0,41038.0,0.060939]
[1646406158621,0.0011,41055.0,41033.0,0.34869308]
[1646406158622,0.36574,41053.0,41033.0,0.34869308]
[1646406158822,0.15493604,41046.0,41035.0,0.45]
[1646406159022,0.0127911,41046.0,41036.0,0.34869308]
[1646406159221,0.01492899,41054.0,41036.0,0.34869308]
[1646406159431,0.24012163,41050.0,41036.0,0.34869308]
[1646406159624,0.01238871,41048.0,41037.0,0.02448]
[1646406159882,0.24012163,41050.0,41041.0,0.25192801]
[1646406160082,0.01135335,41049.0,41041.0,0.25192801]
[1646406160484,0.0011,41055.0,41046.0,0.36574]
[1646406160785,0.0011,41055.0,41050.0,0.02448]
[1646406161082,0.0011,41055.0,41052.0,0.26402289]
[1646406161384,0.0011,41055.0,41054.0,0.13009409]
[1646406161781,0.0011,41055.0,41048.0,0.34869308]
[1646406161782,0.0011,41055.0,41049.0,0.1]
[1646406161983,0.0011,41055.0,41050.0,0.36574]
[1646406162186,0.21888137,41055.0,41045.0,0.041]
[1646406162381,0.01339912,41051.0,41043.0,0.34869308]
[1646406162581,0.01339912,41051.0,41047.0,0.09935468]
[1646406162781,0.01339912,41051.0,41039.0,0.34869308]
[1646406163082,0.21376522,41046.0,41040.0,0.36574]
[1646406163283,0.21376522,41046.0,41036.0,0.34869308]
[1646406163284,0.22935334,41043.0,41032.0,0.24318198]
[1646406163513,0.01192845,41045.0,41032.0,0.24318198]
[1646406163705,0.01231582,41044.0,41033.0,0.43412108]
[1646406163905,0.53357049,41046.0,41033.0,0.43412108]
[1646406164206,0.01127,41045.0,41033.0,0.40964108]
[1646406164506,0.15,41054.0,41033.0,0.40964108]
[1646406164708,0.23419621,41044.0,41034.0,0.1]
[1646406165312,0.23419621,41044.0,41033.0,0.160948]
[1646406165506,0.23419621,41044.0,41033.0,0.060948]
[1646406165708,0.23419621,41044.0,41029.0,0.060958]
[1646406165709,0.27174311,41031.0,41029.0,0.060958]
[1646406165909,0.35971152,41045.0,41036.0,0.46879342]
[1646406165910,0.36574,41041.0,41036.0,0.46879342]
[1646406166107,0.36574,41041.0,41040.0,0.01493046]
[1646406167011,0.85508632,41041.0,41040.0,0.01493046]
[1646406168570,0.060957,41048.0,41036.0,0.46879342]
[1646406168571,0.0011,41055.0,41039.0,0.06095]
[1646406169370,0.22948089,41047.0,41045.0,0.2781812]
[1646406169567,0.15997672,41052.0,41045.0,0.2781812]
[1646406169780,0.0011,41055.0,41046.0,0.36574]
[1646406170073,0.0011,41055.0,41046.0,0.73912958]
[1646406170269,0.0011,41055.0,41052.0,0.36574]
[1646406170470,0.0011,41055.0,41054.0,0.13009409]
[1646406170673,0.0011,41055.0,41054.0,0.71464958]
[1646406170869,0.0011,41055.0,41048.0,0.041]
[1646406171115,0.0011,41055.0,41047.0,0.041]
[1646406171312,0.0011,41055.0,41046.0,0.041]
[1646406171513,0.0011,41055.0,41047.0,0.36574]
[1646406171712,0.0011,41055.0,41051.0,0.13009409]
[1646406171912,0.0011,41055.0,41046.0,0.041]
[1646406171913,0.36574,41054.0,41046.0,0.041]
[1646406172113,0.36574,41054.0,41038.0,0.041]
[1646406172320,0.46574,41054.0,41038.0,0.041]
[1646406172513,0.060944,41051.0,41037.0,0.34890958]
[1646406172713,0.26257017,41044.0,41037.0,0.34890958]
[1646406172912,0.16869545,41046.0,41040.0,0.30455253]
[1646406173112,0.05,41044.0,41040.0,0.30455253]
[1646406173313,0.36574,41043.0,41035.0,0.121893]
[1646406173515,0.060955,41044.0,41033.0,0.060958]
[1646406173713,0.36574,41043.0,41033.0,0.060958]
[1646406173914,1.4,41036.0,41029.0,0.243727]
[1646406174117,1.4,41036.0,41016.0,0.34390958]
[1646406174118,0.15,41033.0,41016.0,0.34390958]
[1646406174315,0.26349771,41031.0,41017.0,0.27359335]
[1646406174517,0.05,41031.0,41018.0,0.34890958]
[1646406174772,0.05,41032.0,41020.0,0.02448]
[1646406174969,0.25674116,41032.0,41018.0,0.34890958]
[1646406175267,0.110973,41035.0,41018.0,0.34890958]
[1646406175467,0.36574,41034.0,41019.0,0.121942]
[1646406175666,0.110973,41035.0,41019.0,0.121942]
[1646406175667,0.15928307,41027.0,41023.0,0.060973]
[1646406175868,0.36574,41026.0,41019.0,0.121942]
[1646406176067,0.36574,41026.0,41023.0,0.13009409]
[1646406176068,0.7199544,41026.0,41023.0,0.13009409]
[1646406176269,0.1,41026.0,41025.0,0.13009409]
[1646406176469,0.01312752,41025.0,41017.0,0.27359335]
[1646406176669,0.01173265,41024.0,41021.0,0.13009409]
[1646406176968,0.01173265,41024.0,41023.0,0.13009409]
[1646406177169,0.36574,41024.0,41023.0,0.13009409]
[1646406177371,0.05,41026.0,41023.0,0.84767971]
[1646406177573,0.01029274,41025.0,41024.0,0.26579338]
[1646406177770,0.36574,41024.0,41019.0,0.121941]
[1646406178073,0.51574,41023.0,41015.0,0.19967574]
[1646406178272,0.15,41020.0,41015.0,0.19967574]
[1646406178519,0.42674369,41019.0,41015.0,0.19967574]
[1646406178816,0.01275454,41020.0,41015.0,0.05767574]
[1646406179016,0.23151033,41022.0,41015.0,0.05767574]
[1646406179413,0.36574,41021.0,41015.0,0.05767574]
[1646406179616,0.07280084,41018.0,41015.0,0.05767574]
[1646406179814,0.36574,41017.0,41015.0,0.05767574]
[1646406180014,0.37615394,41016.0,41015.0,0.05767574]
[1646406180220,0.35184562,41028.0,41024.0,0.16641216]
[1646406180416,0.17704491,41033.0,41024.0,0.16641216]
[1646406180616,0.365721,41033.0,41025.0,0.32044178]
[1646406180820,0.121911,41045.0,41026.0,0.365721]
[1646406181015,0.121911,41045.0,41025.0,0.32044178]
[1646406181016,0.5,41040.0,41025.0,0.32044178]
[1646406181216,0.2,41043.0,41024.0,0.16641216]
[1646406181217,0.060967,41033.0,41024.0,0.16641216]
[1646406181615,0.365721,41040.0,41024.0,0.3849183]
[1646406181816,0.121935,41039.0,41025.0,0.35184562]
[1646406182283,0.365721,41038.0,41030.0,0.26429617]
[1646406182479,0.060957,41040.0,41031.0,0.52379959]
[1646406182678,0.060957,41040.0,41031.0,0.35340236]
[1646406183078,0.4715,41048.0,41031.0,0.35340236]
[1646406183280,0.05,41051.0,41034.0,0.20565745]
[1646406183281,0.365721,41050.0,41034.0,0.20565745]
[1646406183481,0.15,41054.0,41035.0,0.35340236]
[1646406183684,0.61229276,41056.0,41035.0,0.35340236]
[1646406183880,0.12189276,41056.0,41036.0,0.02448]
[1646406184079,0.12189276,41056.0,41035.0,0.35340236]
[1646406184279,0.12189,41050.0,41038.0,0.060945]
[1646406184479,0.15,41057.0,41038.0,0.41434736]
[1646406184680,0.27650578,41051.0,41038.0,0.62788562]
[1646406184880,0.27650578,41051.0,41038.0,0.41434736]
[1646406185783,0.63033103,41043.0,41027.0,0.45340236]
[1646406186011,0.63033103,41043.0,41025.0,0.35340236]
[1646406186909,0.63033103,41043.0,41030.0,0.3220708]
[1646406187110,0.060961,41037.0,41030.0,0.3220708]
[1646406187310,0.365721,41036.0,41030.0,0.3220708]
[1646406187916,0.060961,41037.0,41028.0,0.35340236]
[1646406188119,0.426687,41036.0,41024.0,0.16641216]
[1646406188311,0.230134,41032.0,41024.0,0.16641216]
[1646406188711,0.05591948,41025.0,41024.0,0.16641216]
[1646406188916,0.365721,41025.0,41024.0,1.216e-05]
[1646406189314,0.615721,41025.0,41024.0,1.216e-05]
[1646406189765,0.465721,41025.0,41024.0,1.216e-05]
[1646406189967,0.81902062,41025.0,41024.0,1.216e-05]
[1646406190167,0.465721,41025.0,41024.0,1.216e-05]
[1646406190368,0.365721,41025.0,41024.0,1.216e-05]
[1646406190575,0.12196326,41026.0,41024.0,1.216e-05]
[1646406190576,0.060981,41026.0,41024.0,1.216e-05]
[1646406190772,0.2439,41044.0,41025.0,0.365721]
[1646406190773,0.060964,41030.0,41025.0,0.365721]
[1646406190970,0.060964,41030.0,41029.0,0.13009409]
[1646406191167,0.060964,41030.0,41026.0,0.53624261]
[1646406191367,0.060964,41030.0,41026.0,0.18294299]
[1646406191571,0.230134,41028.0,41026.0,0.18294299]
[1646406191768,0.060964,41030.0,41026.0,0.18294299]
[1646406191769,0.365721,41027.0,41026.0,0.18294299]
[1646406192169,0.365721,41027.0,41026.0,0.09801069]
[1646406192372,0.230134,41025.0,41024.0,1.216e-05]
[1646406192572,0.061004,41020.0,41015.0,0.05767574]
[1646406192770,0.230134,41019.0,41015.0,0.05767574]
[1646406192973,0.230134,41019.0,41002.0,0.121995]
[1646406192974,0.365721,41017.0,41002.0,0.121995]
[1646406193177,0.365721,41017.0,40996.0,0.02309]
[1646406193371,0.15,41015.0,40996.0,0.02309]
[1646406193628,0.061011,41004.0,41000.0,0.38749775]
[1646406193824,0.061011,41004.0,41001.0,0.365721]
[1646406194125,0.05,41015.0,40999.0,0.06101]
[1646406194425,0.36572,41013.0,41004.0,0.14057196]
[1646406194623,0.28041717,41012.0,41004.0,0.14057196]
[1646406194824,0.2261059,41008.0,41004.0,0.14057196]
[1646406195024,0.230135,41007.0,41004.0,0.14057196]
[1646406195829,0.291138,41007.0,41004.0,0.14057196]
[1646406196526,0.061003,41007.0,41004.0,0.14057196]
[1646406197025,0.365721,41006.0,41004.0,0.14057196]
[1646406197260,0.061003,41007.0,41004.0,0.14057196]
[1646406197660,0.365721,41006.0,41004.0,0.14057196]
[1646406197861,0.365721,41006.0,40996.0,0.02309]
[1646406197862,0.35042654,41005.0,40996.0,0.02309]
[1646406198065,0.365721,40999.0,40996.0,0.02309]
[1646406198263,0.3522414,40999.0,40996.0,0.02309]
[1646406198660,0.42021749,40997.0,40996.0,0.02309]
[1646406200263,0.43047892,40997.0,40996.0,0.02309]
[1646406201045,0.43047892,40997.0,40981.0,0.122055]
[1646406201046,0.352225,40995.0,40981.0,0.122055]
[1646406201239,0.230134,40993.0,40981.0,0.122055]
[1646406201444,0.230134,40993.0,40973.0,0.001]
[1646406201445,0.352225,40990.0,40973.0,0.001]
[1646406201646,0.01440986,40986.0,40973.0,0.001]
[1646406201841,0.2,40992.0,40973.0,0.001]
[1646406201842,0.365827,40985.0,40982.0,0.26995891]
[1646406202041,0.01327519,40992.0,40983.0,0.365827]
[1646406202643,0.47052242,41006.0,40983.0,0.365827]
[1646406202644,0.05,41001.0,40991.0,0.15]
[1646406202944,0.061002,41017.0,41000.0,0.30403163]
[1646406203141,0.01416832,41006.0,41001.0,0.34846942]
[1646406203340,0.01002073,41004.0,40998.0,0.34846942]
[1646406203545,0.01002073,41004.0,40991.0,0.34846942]
[1646406203546,0.06101,41002.0,40991.0,0.34846942]
[1646406203745,0.365827,41001.0,40985.0,0.53148442]
[1646406203945,0.216532,40999.0,40985.0,0.183015]
[1646406204141,0.06101932,41000.0,40986.0,0.49846942]
[1646406204344,0.44492352,41009.0,41007.0,0.24851437]
[1646406204541,0.44492352,41009.0,40990.0,0.15]
[1646406204542,0.061004,41006.0,40997.0,0.34846942]
[1646406204789,0.061004,41006.0,40991.0,0.34846942]
[1646406204986,0.061004,41006.0,40988.0,0.34846942]
[1646406205186,0.06101522,41004.0,40989.0,0.28050008]
[1646406205385,0.23120998,40998.0,40992.0,0.122024]
[1646406205586,0.216532,40997.0,40990.0,0.30470965]
[1646406205785,0.05,40997.0,40990.0,0.30470965]
[1646406205987,0.01411972,40996.0,40990.0,0.30470965]
[1646406206290,0.19043489,40996.0,40990.0,0.30470965]
[1646406206488,0.01411972,40996.0,40990.0,0.30470965]
[1646406206787,0.27899618,40996.0,40990.0,0.30470965]
[1646406206986,0.01411972,40996.0,40990.0,0.42673665]
[1646406207391,0.01411972,40996.0,40993.0,0.19682968]
[1646406207589,0.01411972,40996.0,40991.0,0.34309812]
[1646406207789,0.01411972,40996.0,40990.0,0.76983477]
[1646406208190,0.01411972,40996.0,40994.0,0.13009409]
[1646406208391,0.365827,40995.0,40990.0,0.76983477]
[1646406208614,0.01411972,40996.0,40990.0,0.42673665]
[1646406209617,0.01411972,40996.0,40992.0,0.061013]
[1646406210019,0.01411972,40996.0,40989.0,0.34309812]
[1646406210219,0.183047,41007.0,40986.0,0.34309812]
[1646406210220,0.07224068,41007.0,40986.0,0.34309812]
[1646406210418,0.05,40997.0,40986.0,0.34309812]
[1646406210620,0.01421463,40996.0,40988.0,0.365827]
[1646406210819,0.26271068,41000.0,40989.0,0.1]
[1646406210820,0.07705853,40998.0,40989.0,0.1]
[1646406211022,0.216532,40997.0,40982.0,0.33485846]
[1646406211218,0.216532,40997.0,40979.0,0.32990938]
[1646406211219,0.365827,40996.0,40979.0,0.32990938]
[1646406211423,0.01351961,40996.0,40979.0,0.32990938]
[1646406211620,0.19934886,40988.0,40979.0,0.32990938]
[1646406211919,0.01457928,40990.0,40979.0,0.32990938]
[1646406212120,0.061026,40988.0,40983.0,0.31921641]
[1646406212360,0.111026,40988.0,40983.0,0.31921641]
[1646406212960,0.111026,40988.0,40987.0,0.13009409]
[1646406213160,0.111026,40988.0,40982.0,0.32990938]
[1646406213363,0.111026,40988.0,40981.0,0.061023]
[1646406213562,0.111026,40988.0,40982.0,0.32990938]
[1646406213762,0.111026,40988.0,40983.0,0.1]
[1646406213965,0.111026,40988.0,40983.0,0.12448]
[1646406214161,0.111026,40988.0,40985.0,0.365827]
[1646406214362,0.111026,40988.0,40984.0,0.32990938]
[1646406214764,0.13528046,40989.0,40987.0,0.365827]
[1646406214765,0.01322746,40989.0,40987.0,0.365827]
[1646406214963,0.76834788,41011.0,40990.0,0.02800209]
[1646406214964,0.061006,40997.0,40990.0,0.02800209]
[1646406215162,0.061006,40997.0,40994.0,0.13009409]
[1646406215363,0.061006,40997.0,40990.0,0.02800209]
[1646406215364,0.061006,40997.0,40995.0,0.365827]
[1646406215562,0.061006,40997.0,40990.0,0.05248209]
[1646406215762,0.122011,41001.0,40996.0,0.23421607]
[1646406216010,0.061003,41000.0,40991.0,0.32990938]
[1646406216210,0.0545,40997.0,40995.0,0.13009409]
[1646406216411,0.0545,40997.0,40996.0,0.73673638]
[1646406216614,0.0001,40997.0,40996.0,0.73673638]
[1646406216809,0.0001,40997.0,40996.0,0.57042643]
[1646406217211,0.0001,40997.0,40996.0,0.24051705]
[1646406217512,0.365927,40997.0,40996.0,0.09951705]
[1646406217712,0.365927,40997.0,40996.0,0.09947095]
[1646406217912,0.65497192,40997.0,40990.0,0.02800209]
[1646406218213,0.19660487,40995.0,40990.0,0.02800209]
[1646406218411,0.216532,40994.0,40990.0,0.02800209]
[1646406218614,0.5,40993.0,40981.0,0.19853881]
[1646406218816,0.316532,40994.0,40977.0,0.67293881]
[1646406218817,0.365827,40992.0,40977.0,0.67293881]
[1646406219013,0.06104041,40990.0,40977.0,0.4744]
[1646406219218,0.3288066,40993.0,40973.0,0.24917351]
[1646406219219,0.12208103,40986.0,40974.0,0.19853881]
[1646406219414,0.23150746,40986.0,40974.0,0.19853881]
[1646406219614,0.05,40985.0,40974.0,0.19853881]
[1646406219899,0.05,40985.0,40975.0,0.19853881]
[1646406219900,0.216532,40983.0,40975.0,0.19853881]
[1646406220099,0.06104105,40980.0,40975.0,0.19853881]
[1646406220300,0.06104105,40980.0,40976.0,0.365827]
[1646406220498,0.06104105,40980.0,40976.0,0.54900676]
[1646406220697,0.061041,40979.0,40976.0,0.365827]
[1646406220900,0.061041,40979.0,40975.0,0.19853881]
[1646406221099,0.061041,40979.0,40973.0,0.001]
[1646406221100,0.365827,40978.0,40973.0,0.001]
[1646406221302,0.216532,40976.0,40973.0,0.001]
[1646406221501,0.216532,40976.0,40966.0,0.19853881]
[1646406221502,0.27759718,40976.0,40966.0,0.19853881]
[1646406221699,0.60504316,40976.0,40966.0,0.19853881]
[1646406221904,0.415827,40967.0,40966.0,0.19853881]
[1646406222203,0.365827,40967.0,40966.0,0.12953878]
[1646406222605,0.365827,40967.0,40966.0,0.14]
[1646406222803,0.415827,40967.0,40966.0,0.14]
[1646406223302,0.63111653,40967.0,40966.0,0.14]
[1646406223510,0.415827,40967.0,40966.0,0.14]
[1646406223813,0.16106,40968.0,40966.0,0.505827]
[1646406224009,0.16106,40968.0,40964.0,0.001]
[1646406224010,0.06106,40968.0,40967.0,0.505827]
[1646406224209,0.32744598,40983.0,40967.0,0.605827]
[1646406224414,0.294233,40984.0,40968.0,0.365827]
[1646406224611,0.294233,40984.0,40968.0,0.1]
[1646406224612,0.061046,40972.0,40968.0,0.1]
[1646406224811,0.111052,40984.0,40971.0,0.14]
[1646406224812,0.05,40984.0,40971.0,0.14]
[1646406225015,0.01084488,40983.0,40973.0,0.15]
[1646406225313,0.2421,41004.0,40984.0,0.365827]